bitfinex-derivatives/quotes_BTCF0:USTF0_20250207
["timestamp","ask_amount","ask_price","bid_price","bid_amount"]
[1738950018091,0.3608,97658.0,97649.0,0.2047223]
[1738950018092,0.2047186,97652.0,97649.0,0.2047223]
[1738950018293,0.2047186,97652.0,97648.0,0.00015357]
[1738950018494,0.2047186,97652.0,97651.0,0.2047199]
[1738950018686,0.3608,97658.0,97648.0,0.00015357]
[1738950018888,0.3608,97658.0,97656.0,0.2047075]
[1738950019596,0.2047145,97654.0,97651.0,0.2047188]
[1738950019892,0.2047178,97652.0,97651.0,0.2047188]
[1738950020491,0.3608,97658.0,97648.0,0.00315357]
[1738950020679,0.2047095,97656.0,97654.0,0.2047127]
[1738950022094,0.2046992,97661.0,97651.0,0.004]
[1738950022283,0.2046992,97661.0,97659.0,0.2047013]
[1738950022687,0.3608,97663.0,97654.0,0.2077133]
[1738950022898,0.2047106,97656.0,97654.0,0.2077133]
[1738950023788,0.2047106,97656.0,97654.0,0.003]
[1738950023989,0.2046991,97661.0,97654.0,0.004]
[1738950024190,0.2046991,97661.0,97659.0,0.2047029]
[1738950024492,0.3608,97663.0,97654.0,0.004]
[1738950024695,0.5654951,97663.0,97661.0,0.2046988]
[1738950025197,0.3608,97663.0,97657.0,0.204707]
[1738950025393,0.2047115,97655.0,97654.0,0.002]
[1738950026392,0.2047115,97655.0,97654.0,0.2067136]
[1738950026696,0.2047115,97655.0,97654.0,0.2047136]
[1738950027296,0.3638,97663.0,97651.0,0.00927832]
[1738950027493,0.2047241,97649.0,97648.0,0.00015357]
[1738950028093,0.3608,97655.0,97648.0,0.00922779]
[1738950028288,0.3608,97655.0,97654.0,0.2047136]
[1738950028502,0.3608,97663.0,97648.0,0.00922779]
[1738950028701,0.3608,97663.0,97662.0,0.2046968]
[1738950029000,0.3608,97663.0,97653.0,0.12085661]
[1738950029301,0.3608,97663.0,97658.0,0.2047038]
[1738950029503,0.2047012,97660.0,97659.0,0.2047012]
[1738950030204,0.2047012,97660.0,97653.0,0.12085661]
[1738950030205,0.3628,97663.0,97653.0,0.12085661]
[1738950031103,0.3628,97663.0,97658.0,0.2047036]
[1738950031104,0.2047077,97659.0,97658.0,0.2047036]
[1738950031400,0.001,97660.0,97653.0,0.12085661]
[1738950031602,0.001,97660.0,97653.0,0.32557181]
[1738950031903,0.2047136,97654.0,97653.0,0.32557181]
[1738950032094,0.2047136,97654.0,97653.0,0.2047152]
[1738950033294,0.3628,97663.0,97653.0,0.2047152]
[1738950033497,0.2047053,97658.0,97648.0,0.00922779]
[1738950033703,0.2047053,97658.0,97655.0,0.20471]
[1738950034203,0.2047136,97654.0,97653.0,0.002]
[1738950035603,0.2047136,97654.0,97653.0,0.2067157]
[1738950036092,0.2047136,97654.0,97653.0,0.002]
[1738950036291,0.21397282,97654.0,97653.0,0.002]
[1738950036496,0.21397282,97654.0,97624.0,0.1282418]
[1738950036497,0.00925922,97654.0,97624.0,0.1282418]
[1738950036704,0.3608,97655.0,97634.0,0.2047549]
[1738950036705,0.5655492,97637.0,97634.0,0.2047549]
[1738950037208,0.7216,97637.0,97622.0,0.2047789]
[1738950037394,0.3608,97627.0,97622.0,0.00938913]
[1738950037599,0.3608,97627.0,97626.0,0.2047723]
[1738950037905,0.3608,97627.0,97617.0,0.12085661]
[1738950037906,0.00015357,97634.0,97633.0,0.2047576]
[1738950038491,0.00015357,97634.0,97624.0,0.12085661]
[1738950038492,0.2047729,97626.0,97621.0,0.2047821]
[1738950038697,0.3608,97628.0,97616.0,0.12085661]
[1738950038899,0.3608,97628.0,97626.0,0.2047714]
[1738950039203,0.3608,97629.0,97615.0,0.00946661]
[1738950039505,0.2047796,97623.0,97621.0,0.2047824]
[1738950039707,0.2047796,97623.0,97615.0,0.00946661]
[1738950039708,0.1897,97633.0,97615.0,0.00946661]
[1738950039904,0.1897,97633.0,97624.0,0.2047746]
[1738950040098,0.1897,97633.0,97629.0,0.2047647]
[1738950040299,0.1897,97633.0,97630.0,0.2047634]
[1738950040706,0.1897,97633.0,97620.0,0.12085661]
[1738950040903,0.2047667,97629.0,97623.0,0.2047773]
[1738950041206,0.2047667,97629.0,97620.0,0.12085661]
[1738950041409,0.1897,97633.0,97630.0,0.002]
[1738950041904,0.1897,97633.0,97619.0,0.2047863]
[1738950042110,0.1897,97633.0,97623.0,0.003]
[1738950042307,0.2047764,97625.0,97623.0,0.003]
[1738950042701,0.1867,97624.0,97623.0,0.003]
[1738950043501,0.1867,97624.0,97619.0,0.001]
[1738950043902,0.1867,97624.0,97620.0,0.2047857]
[1738950044098,0.1877,97624.0,97623.0,0.005]
[1738950044307,0.1877,97624.0,97623.0,0.01]
[1738950044704,0.1877,97624.0,97623.0,0.005]
[1738950045507,0.2047848,97621.0,97619.0,0.005]
[1738950045706,0.2047848,97621.0,97619.0,0.01]
[1738950045915,0.47366001,97624.0,97619.0,0.01]
[1738950046101,0.27974,97624.0,97622.0,0.2047804]
[1738950046301,0.27974,97624.0,97623.0,0.005]
[1738950046815,0.27974,97624.0,97619.0,0.005]
[1738950047003,0.5655857,97620.0,97619.0,0.011]
[1738950047208,0.5655857,97620.0,97619.0,0.006]
[1738950047712,0.3608,97620.0,97619.0,0.006]
[1738950048008,0.001,97621.0,97619.0,0.006]
[1738950048313,0.001,97620.0,97619.0,0.2117872]
[1738950048908,0.001,97620.0,97619.0,0.2167872]
[1738950049307,0.001,97620.0,97619.0,0.012]
[1738950049517,0.5675857,97620.0,97619.0,0.014]
[1738950049716,0.5665857,97620.0,97619.0,0.013]
[1738950050017,0.2047941,97616.0,97615.0,0.00015357]
[1738950050315,0.2048214,97603.0,97600.0,0.1]
[1738950051712,0.1913,97609.0,97600.0,0.1]
[1738950051914,0.204805,97611.0,97600.0,0.1]
[1738950052109,0.204805,97611.0,97602.0,0.20635917]
[1738950052414,0.001,97603.0,97602.0,0.00653657]
[1738950052607,0.002,97603.0,97602.0,0.01553657]
[1738950053111,0.00015366,97612.0,97602.0,0.00153657]
[1738950053306,0.002,97611.0,97602.0,0.01253657]
[1738950053511,0.3608,97610.0,97605.0,0.2048158]
[1738950053713,0.001,97611.0,97605.0,0.2048158]
[1738950054010,0.001,97611.0,97603.0,0.199]
[1738950054218,0.2048092,97609.0,97603.0,0.199]
[1738950054520,0.2048092,97609.0,97602.0,0.01353657]
[1738950054521,0.3608,97609.0,97602.0,0.01153657]
[1738950054809,0.3608,97609.0,97602.0,0.005]
[1738950055006,0.001,97603.0,97602.0,0.01]
[1738950055407,0.09296,97603.0,97602.0,0.01]
[1738950055602,0.09196,97603.0,97602.0,0.005]
[1738950056308,0.2048228,97602.0,97600.0,0.1]
[1738950056514,0.4000228,97602.0,97600.0,0.1]
[1738950057918,0.4030228,97602.0,97600.0,0.1]
[1738950059212,0.4030228,97602.0,97600.0,0.3048257]
[1738950059213,0.3638,97602.0,97600.0,0.3048257]
[1738950059514,0.2138246,97602.0,97600.0,0.1]
[1738950060806,0.009,97602.0,97600.0,0.3048261]
[1738950061815,0.009,97602.0,97600.0,0.31432613]
[1738950062120,0.15268092,97619.0,97611.0,0.204804]
[1738950062814,0.15268092,97619.0,97611.0,0.773504]
[1738950063416,0.00715366,97612.0,97611.0,0.2001]
[1738950063615,0.00715366,97612.0,97611.0,0.001]
[1738950064013,0.01651751,97612.0,97611.0,0.00035465]
[1738950064220,0.00715366,97612.0,97611.0,0.00035465]
[1738950064411,0.01615366,97612.0,97611.0,0.00135465]
[1738950068225,0.01615366,97612.0,97611.0,0.37915465]
[1738950069025,0.13255771,97631.0,97630.0,0.2047641]
[1738950069218,0.13255771,97631.0,97630.0,0.5655641]
[1738950069617,0.18440075,97651.0,97630.0,0.3608]
[1738950069823,0.00153668,97651.0,97645.0,0.3608]
[1738950070118,0.00015366,97650.0,97645.0,0.3608]
[1738950071016,0.00015366,97650.0,97645.0,0.3618]
[1738950071414,0.00915366,97650.0,97645.0,0.3628]
[1738950073225,0.00915366,97650.0,97648.0,0.2047248]
[1738950074425,0.00915366,97650.0,97648.0,0.2057248]
[1738950075721,0.01515366,97650.0,97648.0,0.2067248]
[1738950078024,0.01515366,97650.0,97648.0,0.5067248]
[1738950078832,0.01515366,97650.0,97648.0,0.2067248]
[1738950081126,0.39263614,97679.0,97678.0,0.2046635]
[1738950081632,0.00153614,97679.0,97678.0,0.2046635]
[1738950082126,0.00153614,97679.0,97676.0,0.3608]
[1738950082529,0.00853614,97679.0,97678.0,0.001]
[1738950083123,0.00153614,97679.0,97677.0,0.2046649]
[1738950083327,0.00153614,97679.0,97678.0,0.001]
[1738950083328,0.00853614,97679.0,97678.0,0.001]
[1738950083724,0.00853614,97679.0,97678.0,0.002]
[1738950083924,0.01153614,97679.0,97678.0,0.002]
[1738950085228,0.00453614,97679.0,97678.0,0.001]
[1738950085429,0.19183614,97679.0,97678.0,0.001]
[1738950086335,0.19183614,97679.0,97670.0,0.00926207]
[1738950086529,0.5654782,97671.0,97669.0,0.00015357]
[1738950086828,0.189,97670.0,97669.0,0.00015357]
[1738950087131,0.2047117,97655.0,97654.0,0.00963425]
[1738950087335,0.189,97670.0,97654.0,0.37043425]
[1738950087536,0.189,97670.0,97668.0,0.2046839]
[1738950087731,0.3936811,97670.0,97654.0,0.3608]
[1738950087930,0.2046924,97665.0,97654.0,0.3608]
[1738950088121,0.2046924,97665.0,97661.0,0.2046988]
[1738950088436,0.2046952,97663.0,97661.0,0.2046988]
[1738950089235,0.2047028,97660.0,97656.0,0.2047095]
[1738950089432,0.2047068,97658.0,97656.0,0.2047095]
[1738950089831,0.3608,97661.0,97650.0,0.0016897]
[1738950090028,0.001,97665.0,97664.0,0.2046928]
[1738950090947,0.2046897,97666.0,97664.0,0.2046928]
[1738950091234,0.00015357,97669.0,97668.0,0.2046844]
[1738950092224,0.20483597,97669.0,97666.0,0.1946]
[1738950092429,0.00015357,97669.0,97665.0,0.3608]
[1738950092629,0.2047199,97652.0,97650.0,0.0016897]
[1738950093042,0.2047199,97652.0,97650.0,0.01119658]
[1738950093632,0.3608,97658.0,97650.0,0.01119658]
[1738950093831,0.2047075,97657.0,97650.0,0.21591708]
[1738950094027,0.2047028,97660.0,97650.0,0.21591708]
[1738950094236,0.1976,97665.0,97659.0,0.3608]
[1738950094634,0.2046995,97661.0,97659.0,0.3608]
[1738950095537,0.1986,97665.0,97659.0,0.3608]
[1738950095748,0.4032917,97665.0,97660.0,0.2047007]
[1738950096042,0.001,97661.0,97660.0,0.2047007]
[1738950096235,0.001,97661.0,97650.0,0.01119658]
[1738950096426,0.2047186,97652.0,97650.0,0.01119658]
[1738950096632,0.3608,97651.0,97650.0,0.0016897]
[1738950096843,0.2047435,97640.0,97634.0,0.2047543]
[1738950097040,0.2047321,97646.0,97632.0,0.2047597]
[1738950097241,0.3608,97651.0,97630.0,0.13009633]
[1738950097446,0.3608,97661.0,97640.0,0.48165661]
[1738950097633,0.2047171,97653.0,97648.0,0.2047251]
[1738950097834,0.2047171,97653.0,97650.0,0.004]
[1738950098539,0.001,97651.0,97650.0,0.3608]
[1738950098840,0.001,97651.0,97650.0,0.57503581]
[1738950099041,0.00015357,97660.0,97659.0,0.2047033]
[1738950099341,0.00015357,97660.0,97659.0,0.5655033]
[1738950099529,0.5622,97684.0,97678.0,0.2046635]
[1738950100845,0.7668514,97684.0,97678.0,0.2046635]
[1738950101039,0.15219823,97680.0,97678.0,0.2046635]
[1738950101737,0.15219823,97680.0,97669.0,0.20483387]
[1738950102244,0.2046726,97674.0,97669.0,0.00015357]
[1738950102443,0.36633614,97679.0,97669.0,0.00015357]
[1738950102641,0.36633614,97679.0,97669.0,0.20483517]
[1738950102847,0.2046681,97676.0,97669.0,0.20483517]
[1738950103146,0.2046713,97675.0,97669.0,0.20583517]
[1738950103834,0.2046713,97675.0,97669.0,0.21537256]
[1738950104029,0.2046713,97675.0,97670.0,0.2046796]
[1738950104239,0.36633614,97679.0,97672.0,0.204675]
[1738950104438,0.15219823,97676.0,97672.0,0.204675]
[1738950104641,0.15619823,97676.0,97672.0,0.204675]
[1738950104843,0.15619823,97676.0,97669.0,0.01069096]
[1738950105049,0.15619823,97676.0,97674.0,0.2046714]
[1738950105347,0.15219823,97676.0,97672.0,0.001]
[1738950106240,0.15619823,97676.0,97674.0,0.20567]
[1738950107542,0.36086673,97676.0,97674.0,0.001]
[1738950107748,0.2046764,97672.0,97670.0,0.3608]
[1738950107948,0.2046764,97672.0,97669.0,0.00015357]
[1738950107949,0.15619823,97676.0,97669.0,0.00015357]
[1738950108136,0.15619823,97676.0,97674.0,0.2046719]
[1738950108339,0.15619823,97676.0,97675.0,0.2046698]
[1738950109845,0.2046698,97675.0,97674.0,0.001]
[1738950110548,0.2046796,97671.0,97669.0,0.00015357]
[1738950110751,0.2046796,97671.0,97670.0,0.2046758]
[1738950111457,0.2046796,97671.0,97650.0,0.00056]
[1738950111458,0.45236,97671.0,97650.0,0.00056]
[1738950111751,0.2047206,97651.0,97648.0,0.1837616]
[1738950112250,0.2047369,97643.0,97642.0,0.244846]
[1738950113950,0.95052351,97650.0,97642.0,0.244846]
[1738950114145,0.95052351,97650.0,97643.0,0.2047369]
[1738950114146,0.7452,97650.0,97643.0,0.2047369]
[1738950114342,0.2047348,97644.0,97642.0,0.250846]
[1738950114845,0.2047348,97644.0,97642.0,0.253846]
[1738950115052,0.36132001,97650.0,97642.0,0.253846]
[1738950115247,0.2047343,97645.0,97642.0,0.253846]
[1738950115850,0.23160856,97643.0,97642.0,0.009]
[1738950116049,0.43634546,97643.0,97642.0,0.009]
[1738950117046,0.43634546,97643.0,97642.0,0.004]
[1738950117354,0.23160856,97643.0,97633.0,0.00015357]
[1738950117555,0.2047993,97614.0,97612.0,0.4035013]
[1738950117758,0.2047993,97614.0,97612.0,0.2124132]
[1738950118057,0.2047855,97620.0,97612.0,0.0076119]
[1738950118243,0.2047855,97620.0,97617.0,0.2047903]
[1738950118555,0.2047933,97617.0,97612.0,0.2048016]
[1738950118752,0.3608,97626.0,97613.0,0.2047995]
[1738950118956,0.204794,97616.0,97613.0,0.2047995]
[1738950119543,0.3608,97626.0,97612.0,0.006]
[1738950119750,0.3608,97626.0,97621.0,0.2047814]
[1738950119942,0.00015365,97628.0,97613.0,0.3608]
[1738950120259,0.00015365,97628.0,97627.0,0.2047704]
[1738950120553,0.00015365,97628.0,97614.0,0.2047969]
[1738950120752,0.00015365,97628.0,97613.0,0.005]
[1738950120753,0.2047971,97615.0,97613.0,0.005]
[1738950121256,0.2047728,97626.0,97614.0,0.3608]
[1738950121554,0.2047791,97623.0,97617.0,0.2047901]
[1738950121853,0.2047854,97620.0,97615.0,0.2047952]
[1738950122960,0.3608,97623.0,97613.0,0.012]
[1738950123148,0.3608,97623.0,97621.0,0.2047817]
[1738950123647,0.2047729,97626.0,97615.0,0.004]
[1738950123846,0.00015365,97628.0,97627.0,0.2047704]
[1738950124852,0.00015365,97628.0,97627.0,0.7662704]
[1738950126055,0.00015365,97628.0,97627.0,0.77371613]
[1738950126252,0.3898,97654.0,97627.0,0.56894573]
[1738950126457,0.2047164,97653.0,97642.0,0.204739]
[1738950126755,0.3898,97654.0,97642.0,0.204739]
[1738950126957,0.2047268,97648.0,97642.0,0.204739]
[1738950127149,0.3898,97654.0,97642.0,0.204739]
[1738950127150,0.2047167,97653.0,97642.0,0.204739]
[1738950127355,0.3608,97647.0,97642.0,0.204739]
[1738950127757,0.00015365,97652.0,97642.0,0.204739]
[1738950127944,0.00015365,97652.0,97642.0,0.205739]
[1738950129459,0.00015365,97652.0,97642.0,0.206739]
[1738950130156,0.00015365,97652.0,97642.0,0.208739]
[1738950130863,0.00015365,97652.0,97642.0,0.207739]
[1738950131059,0.00015365,97652.0,97642.0,0.210739]
[1738950131656,0.00015365,97652.0,97642.0,0.21813971]
[1738950132460,0.00015365,97652.0,97646.0,0.2047303]
[1738950132859,0.00015365,97652.0,97642.0,0.01340071]
[1738950132860,0.2047289,97647.0,97642.0,0.01340071]
[1738950133162,0.2047291,97647.0,97642.0,0.01340071]
[1738950133558,0.2047334,97645.0,97642.0,0.01340071]
[1738950133860,0.2047214,97651.0,97647.0,0.2047284]
[1738950135264,0.2067214,97651.0,97647.0,0.2047284]
[1738950135463,0.2047224,97650.0,97647.0,0.2047284]
[1738950136061,0.002,97651.0,97642.0,0.00740071]
[1738950136257,0.003,97651.0,97650.0,0.2047222]
[1738950136659,0.002,97651.0,97640.0,0.12830766]
[1738950136857,0.002,97651.0,97650.0,0.2047222]
[1738950137058,0.002,97651.0,97650.0,0.5655222]
[1738950137468,0.00153645,97671.0,97670.0,0.2046803]
[1738950139661,0.00553645,97671.0,97670.0,0.2046803]
[1738950140060,0.00853645,97671.0,97661.0,0.00015365]
[1738950140366,0.00853645,97671.0,97665.0,0.2046903]
[1738950140561,0.00853645,97671.0,97661.0,0.00015365]
[1738950140772,0.00853645,97671.0,97670.0,0.2046803]
[1738950141756,0.00653645,97671.0,97670.0,0.2046803]
[1738950141962,0.2046891,97666.0,97661.0,0.00015365]
[1738950142165,0.36733645,97671.0,97661.0,0.00015365]
[1738950142468,0.565497,97662.0,97661.0,0.00015365]
[1738950142663,0.3624,97665.0,97662.0,0.204697]
[1738950142868,0.1835,97664.0,97662.0,0.204697]
[1738950143566,0.36933645,97671.0,97661.0,0.00015365]
[1738950143768,0.36933645,97671.0,97669.0,0.2046811]
[1738950143963,0.36533645,97671.0,97669.0,0.2046811]
[1738950144167,0.36233645,97671.0,97669.0,0.2046811]
[1738950145167,0.36533645,97671.0,97669.0,0.2046811]
[1738950145373,0.00453645,97671.0,97669.0,0.2046811]
[1738950145668,0.00453645,97671.0,97661.0,0.00015365]
[1738950145869,0.3608,97668.0,97661.0,0.00015365]
[1738950146065,0.2046957,97663.0,97661.0,0.00015365]
[1738950146662,0.3608,97668.0,97661.0,0.00015365]
[1738950146864,0.5654846,97668.0,97665.0,0.2046903]
[1738950147063,0.00853645,97671.0,97661.0,0.00015365]
[1738950147259,0.00853645,97671.0,97669.0,0.2046814]
[1738950147572,0.00553645,97671.0,97669.0,0.2046814]
[1738950148164,0.004,97671.0,97669.0,0.2046814]
[1738950148369,0.004,97671.0,97669.0,0.21219247]
[1738950148671,0.2046544,97683.0,97669.0,0.00751107]
[1738950148870,0.2046544,97683.0,97670.0,0.18113783]
[1738950149259,0.182,97686.0,97675.0,0.2046681]
[1738950149465,0.2046644,97678.0,97675.0,0.2046681]
[1738950149975,0.2046515,97684.0,97678.0,0.2046628]
[1738950150175,0.182,97686.0,97678.0,0.2046628]
[1738950150176,0.00715365,97680.0,97678.0,0.2046628]
[1738950150377,0.00715365,97680.0,97670.0,0.18213783]
[1738950150671,0.2046616,97679.0,97670.0,0.18213783]
[1738950150869,0.007,97678.0,97675.0,0.205669]
[1738950151280,0.2046659,97677.0,97675.0,0.001]
[1738950152280,0.3608,97678.0,97670.0,0.001]
[1738950152488,0.7377,97676.0,97661.0,0.00015365]
[1738950152690,0.204697,97662.0,97661.0,0.00015365]
[1738950153787,0.206697,97662.0,97661.0,0.00015365]
[1738950155382,0.207697,97662.0,97661.0,0.00015365]
[1738950155581,0.568497,97662.0,97661.0,0.00015365]
[1738950158585,0.2047306,97646.0,97633.0,0.1939]
[1738950158786,0.2047704,97627.0,97622.0,0.2047803]
[1738950159085,0.5655704,97627.0,97620.0,0.3704]
[1738950159281,0.5655704,97627.0,97616.0,0.2047929]
[1738950159886,0.2047704,97627.0,97617.0,0.12102363]
[1738950160086,0.2057704,97627.0,97626.0,0.251846]
[1738950161585,0.2047704,97627.0,97626.0,0.250846]
[1738950161988,0.2047704,97627.0,97626.0,0.006]
[1738950162291,0.2057704,97627.0,97626.0,0.013]
[1738950162992,0.2047704,97627.0,97626.0,0.006]
[1738950163285,0.2047704,97627.0,97626.0,0.002]
[1738950164681,0.2958904,97627.0,97626.0,0.002]
[1738950170487,0.2047704,97627.0,97626.0,0.002]
[1738950170692,0.2958504,97627.0,97626.0,0.002]
[1738950172192,0.09108,97627.0,97617.0,0.00015365]
[1738950172397,0.09108,97627.0,97601.0,0.3704]
[1738950172398,0.2048124,97607.0,97601.0,0.3704]
[1738950172598,0.5656124,97607.0,97601.0,0.371]
[1738950172792,0.204825,97601.0,97600.0,0.1]
[1738950174796,0.204825,97601.0,97600.0,0.109]
[1738950174998,0.205825,97601.0,97600.0,0.109]
[1738950175888,0.206825,97601.0,97600.0,0.118]
[1738950178897,0.2048439,97592.0,97591.0,0.00010272]
[1738950179104,0.2048753,97581.0,97580.0,0.204869]
[1738950179397,0.2048551,97587.0,97586.0,0.2048542]
[1738950180189,0.2048668,97582.0,97581.0,0.2048667]
[1738950180596,0.2048531,97588.0,97587.0,0.2048512]
[1738950181001,0.00015365,97596.0,97583.0,0.3608]
[1738950181188,0.00015365,97596.0,97584.0,0.2048589]
[1738950181389,0.2048585,97585.0,97584.0,0.2048589]
[1738950181598,0.3608,97593.0,97581.0,0.005]
[1738950181807,0.2048648,97582.0,97581.0,0.005]
[1738950182100,0.204867,97581.0,97580.0,0.2048673]
[1738950182298,0.3608,97584.0,97576.0,0.00923507]
[1738950182605,0.2048754,97577.0,97576.0,0.00153698]
[1738950184603,0.2048754,97577.0,97576.0,0.01253698]
[1738950184604,0.2058754,97577.0,97576.0,0.01253698]
[1738950186001,0.2068754,97577.0,97576.0,0.01153698]
[1738950188004,0.002,97577.0,97576.0,0.21641448]
[1738950190193,0.002,97577.0,97576.0,0.01153698]
[1738950192498,0.002,97577.0,97561.0,0.192]
[1738950192703,0.2049187,97557.0,97555.0,0.204921]
[1738950192898,0.2049056,97563.0,97561.0,0.2049079]
[1738950194207,0.2049056,97563.0,97561.0,0.007]
[1738950194504,0.2049056,97563.0,97561.0,0.004]
[1738950194709,0.2059056,97563.0,97561.0,0.007]
[1738950195299,0.3618,97563.0,97540.0,0.245406]
[1738950195496,0.3618,97563.0,97528.0,0.244846]
[1738950195497,0.3608,97543.0,97528.0,0.244846]
[1738950195703,0.2049762,97529.0,97528.0,0.244846]
[1738950196207,0.18157471,97540.0,97528.0,0.244846]
[1738950196208,0.2049635,97536.0,97528.0,0.244846]
[1738950196508,0.2049649,97535.0,97530.0,0.2049737]
[1738950196704,0.2049649,97535.0,97533.0,0.2049672]
[1738950197205,0.09092,97539.0,97528.0,0.249846]
[1738950197405,0.3628,97543.0,97529.0,0.55437471]
[1738950197600,0.5667485,97543.0,97529.0,0.3728]
[1738950197907,0.5657485,97543.0,97530.0,0.1823]
[1738950198108,0.5657485,97543.0,97541.0,0.2049508]
[1738950198410,0.3608,97543.0,97541.0,0.2049508]
[1738950199405,0.3608,97543.0,97536.0,0.2049603]
[1738950199610,0.2049529,97541.0,97536.0,0.2049603]
[1738950200112,0.2049662,97534.0,97530.0,0.54362]
[1738950200305,0.3608,97543.0,97530.0,0.5431]
[1738950200505,0.2049618,97536.0,97532.0,0.2049694]
[1738950200704,0.3608,97543.0,97530.0,0.55179505]
[1738950200905,0.3608,97543.0,97541.0,0.2049507]
[1738950201101,0.00015374,97545.0,97544.0,0.2049447]
[1738950203909,0.00015374,97545.0,97544.0,0.2079447]
[1738950206009,0.00015374,97545.0,97544.0,0.21591323]
[1738950206615,0.5809,97562.0,97561.0,0.204909]
[1738950206910,0.00153831,97563.0,97561.0,0.204909]
[1738950207101,0.54378554,97582.0,97562.0,0.7303]
[1738950207300,0.54378554,97582.0,97563.0,0.1791]
[1738950207501,0.2048843,97573.0,97566.0,0.2048984]
[1738950208014,0.2048843,97573.0,97568.0,0.2048937]
[1738950208404,0.18157471,97580.0,97563.0,0.00015374]
[1738950208612,0.2049007,97565.0,97563.0,0.00015374]
[1738950208912,0.3608,97564.0,97563.0,0.00015374]
[1738950209115,0.9343,97564.0,97563.0,0.00015374]
[1738950209417,0.2049387,97547.0,97542.0,0.1855]
[1738950209616,0.2049412,97546.0,97542.0,0.1855]
[1738950209804,0.204943,97545.0,97542.0,0.55188616]
[1738950210006,0.2049461,97544.0,97542.0,0.36638616]
[1738950210410,0.5657461,97544.0,97542.0,0.36638616]
[1738950210611,0.2049317,97551.0,97542.0,0.36638616]
[1738950211320,0.2049317,97551.0,97544.0,0.2049441]
[1738950211509,0.2049317,97551.0,97545.0,0.2049417]
[1738950211709,0.3608,97552.0,97542.0,0.37038616]
[1738950212008,0.2049349,97549.0,97543.0,0.2049451]
[1738950212308,0.3608,97552.0,97542.0,0.37038616]
[1738950212615,0.2049468,97543.0,97542.0,0.37038616]
[1738950212820,0.5657468,97543.0,97542.0,0.37038616]
[1738950213012,0.5657468,97543.0,97542.0,0.36638616]
[1738950213311,0.5657468,97543.0,97541.0,0.00153778]
[1738950213516,0.5583,97542.0,97541.0,0.00153778]
[1738950215908,0.5593,97542.0,97541.0,0.00153778]
[1738950216107,0.5593,97542.0,97525.0,0.24495914]
[1738950216311,0.3608,97532.0,97525.0,0.24495914]
[1738950216613,0.3608,97532.0,97521.0,0.1801]
[1738950216614,0.2049805,97527.0,97522.0,0.2049893]
[1738950216920,0.54237471,97532.0,97522.0,0.2049893]
[1738950217218,0.2049909,97522.0,97521.0,0.24495914]
[1738950217610,0.2049784,97528.0,97524.0,0.2049855]
[1738950218222,0.2049784,97528.0,97526.0,0.2049815]
[1738950218517,0.00015374,97531.0,97529.0,0.204975]
[1738950220109,0.00215374,97531.0,97529.0,0.209975]
[1738950223409,0.2049193,97557.0,97532.0,0.204968]
[1738950223614,0.2049281,97552.0,97545.0,0.2049406]
[1738950224316,0.2049281,97552.0,97533.0,0.1906]
[1738950224517,0.2049281,97552.0,97549.0,0.2049336]
[1738950225020,0.09072,97556.0,97544.0,0.2049439]
[1738950225220,0.3608,97551.0,97544.0,0.2049439]
[1738950225923,0.3608,97551.0,97539.0,0.00015374]
[1738950226124,0.5657512,97541.0,97539.0,0.00015374]
[1738950226522,0.5605,97540.0,97539.0,0.00015374]
[1738950227225,0.5605,97540.0,97539.0,0.00215374]
[1738950227720,0.5605,97540.0,97539.0,0.00115374]
[1738950227925,0.5615,97540.0,97539.0,0.00215374]
[1738950228615,0.5615,97540.0,97539.0,0.00115374]
[1738950228810,0.5625,97540.0,97539.0,0.00715374]
[1738950229212,0.57055354,97540.0,97539.0,0.00715374]
[1738950230223,0.7674531,97540.0,97539.0,0.21210894]
[1738950230418,0.2069531,97540.0,97539.0,0.00715374]
[1738950230814,0.002,97540.0,97539.0,0.21210894]
[1738950231217,0.002,97540.0,97539.0,0.22041179]
[1738950232324,0.00015374,97558.0,97539.0,0.79689659]
[1738950232526,0.1881,97589.0,97557.0,0.7216]
[1738950232725,0.21176424,97590.0,97576.0,0.3608]
[1738950232919,0.21176424,97590.0,97588.0,0.2048523]
[1738950233316,0.21176424,97590.0,97589.0,0.1774]
[1738950234120,0.22076424,97590.0,97580.0,0.20502194]
[1738950234415,0.34190858,97590.0,97580.0,0.20502194]
[1738950234623,0.21376424,97590.0,97582.0,0.2048637]
[1738950234826,0.21376424,97590.0,97586.0,0.2048553]
[1738950235329,0.002,97590.0,97586.0,0.2048553]
[1738950235628,0.005,97590.0,97586.0,0.2048553]
[1738950236031,0.005,97590.0,97584.0,0.18374355]
[1738950236221,0.005,97590.0,97588.0,0.2048502]
[1738950236931,0.005,97590.0,97584.0,0.18374355]
[1738950237124,0.005,97590.0,97588.0,0.2048518]
[1738950237929,0.002,97590.0,97588.0,0.2048518]
[1738950238120,0.005,97590.0,97588.0,0.2048518]
[1738950238517,0.005,97590.0,97589.0,0.5407]
[1738950238833,0.00015374,97599.0,97589.0,0.5407]
[1738950239029,0.204754,97635.0,97611.0,0.204804]
[1738950239226,0.00052001,97628.0,97611.0,0.204804]
[1738950239531,0.2047588,97633.0,97611.0,0.204804]
[1738950239730,0.2047588,97633.0,97611.0,0.387804]
[1738950240231,0.3608,97636.0,97611.0,0.387804]
[1738950240232,0.00015374,97621.0,97611.0,0.387804]
[1738950240630,0.01053726,97612.0,97611.0,0.388804]
[1738950241427,0.00015374,97621.0,97611.0,0.485]
[1738950241727,0.00015374,97621.0,97620.0,0.5655851]
[1738950242638,0.00915374,97621.0,97620.0,0.5655851]
[1738950243220,0.01715374,97621.0,97620.0,0.5655851]
[1738950243726,0.01015374,97621.0,97620.0,0.5655851]
[1738950244121,0.01015374,97621.0,97620.0,0.2047851]
[1738950244322,0.37095374,97621.0,97611.0,0.00824348]
[1738950244530,0.2047964,97615.0,97608.0,0.2048093]
[1738950244727,0.36395374,97621.0,97618.0,0.2047884]
[1738950245238,0.2047968,97615.0,97610.0,0.2048044]
[1738950245432,0.2047907,97618.0,97614.0,0.2047971]
[1738950245733,0.36395374,97621.0,97602.0,0.00889932]
[1738950246027,0.00315374,97621.0,97619.0,0.2047865]
[1738950246629,0.00215374,97621.0,97619.0,0.2047865]
[1738950247028,0.16295374,97622.0,97610.0,0.18152618]
[1738950247233,0.16295374,97622.0,97608.0,0.3608]
[1738950247530,0.2047921,97617.0,97613.0,0.2047979]